bitfinex/quotes_SOLUSD_20220311
["timestamp","ask_amount","ask_price","bid_price","bid_amount"]
[1646986858509,99.46434735,82.197,82.106,94.14730682]
[1646986858709,99.46434735,82.197,82.107,26.00309213]
[1646986858910,99.46434735,82.197,82.107,67.25432725]
[1646986859114,24.53934302,82.196,82.12,18.2533]
[1646986859316,24.53934302,82.196,82.121,24.6216]
[1646986860916,18.2557,82.19,82.121,24.6216]
[1646986861112,168.92594448,82.196,82.121,24.6216]
[1646986861312,0.25,82.195,82.121,24.6216]
[1646986861512,24.53934302,82.19,82.121,24.6216]
[1646986861916,42.79494302,82.19,82.121,24.6216]
[1646986862315,24.53934302,82.19,82.121,24.6216]
[1646986865216,0.25,82.189,82.121,24.6216]
[1646986866218,24.53934302,82.188,82.121,24.6216]
[1646986866415,23.2138,82.187,82.121,24.6216]
[1646986868017,24.53934302,82.186,82.121,24.6216]
[1646986869917,23.2138,82.187,82.121,24.6216]
[1646986872117,0.25,82.186,82.121,24.6216]
[1646986872722,121.55,82.186,82.121,24.6216]
[1646986872918,0.25,82.186,82.121,24.6216]
[1646986873118,24.53934302,82.185,82.121,24.6216]
[1646986874319,18.2577,82.18,82.121,24.6216]
[1646986875622,0.25,82.179,82.121,24.6216]
[1646986876018,23.2138,82.187,82.1,18.2577]
[1646986876221,121.55,82.186,82.107,23.2787]
[1646986876420,134.41225464,82.186,82.107,37.00778692]
[1646986876620,124.59447957,82.186,82.107,37.00778692]
[1646986876820,121.3,82.184,82.108,13.72908692]
[1646986877019,121.3,82.179,82.108,13.72908692]
[1646986877220,121.3,82.179,82.107,23.2787]
[1646986877420,121.3,82.177,82.096,24.9968]
[1646986877622,144.7597,82.176,82.096,24.9968]
[1646986877821,147.80417957,82.176,82.096,24.9968]
[1646986878024,121.3,82.174,82.096,24.9968]
[1646986878221,18.2615,82.17,82.081,12.66485785]
[1646986878426,121.3,82.167,82.081,12.66485785]
[1646986878621,121.3,82.167,82.082,13.73309453]
[1646986878921,121.3,82.165,82.072,64.73298666]
[1646986879347,3.04447957,82.164,82.073,67.26233658]
[1646986879846,121.3,82.159,82.074,41.25924445]
[1646986880246,3.04447957,82.158,82.075,13.73309453]
[1646986880446,3.04447957,82.158,82.075,41.25924445]
[1646986880648,121.3,82.156,82.075,27.52614992]
[1646986880847,24.8449,82.155,82.075,27.52614992]
[1646986881047,27.88937957,82.155,82.075,27.52614992]
[1646986881347,18.2658,82.15,82.075,27.52614992]
[1646986883649,18.2658,82.15,82.072,24.9968]
[1646986883854,121.3,82.139,82.072,24.9968]
[1646986884052,170.39069846,82.136,82.072,24.9968]
[1646986885652,49.09069846,82.136,82.072,24.9968]
[1646986886652,0.25,82.135,82.072,24.9968]
[1646986887152,18.2688,82.13,82.072,24.9968]
[1646986887553,18.2688,82.13,82.062,27.52614992]
[1646986887755,18.2688,82.13,82.063,23.2117]
[1646986888053,121.3,82.129,82.063,50.73784992]
[1646986888253,23.9961,82.128,82.063,50.73784992]
[1646986888655,23.9961,82.128,82.063,76.74094205]
[1646986890357,0.25,82.127,82.063,76.74094205]
[1646986891656,0.25,82.127,82.063,23.2117]
[1646986894061,0.25,82.127,82.07,18.2642]
[1646986894659,0.25,82.127,82.063,23.2117]
[1646986895662,0.25,82.127,82.063,49.2122788]
[1646986896762,0.25,82.127,82.063,170.5122788]
[1646986896963,0.25,82.127,82.063,195.81976205]
[1646986897160,0.25,82.127,82.063,74.51976205]
[1646986897361,0.25,82.127,82.063,49.2122788]
[1646986897762,0.25,82.127,82.07,18.2629]
[1646986898766,0.25,82.127,82.063,23.2117]
[1646986899967,0.25,82.127,82.07,18.2646]
[1646986903269,0.25,82.127,82.063,23.2117]
[1646986904572,0.25,82.127,82.07,18.2646]
[1646986904972,0.25,82.127,82.063,23.2117]
[1646986908905,23.9961,82.128,82.063,23.2117]
[1646986909103,23.9961,82.128,82.063,144.5117]
[1646986910006,23.9961,82.128,82.08,18.2605]
[1646986910201,23.9961,82.128,82.081,23.8938]
[1646986910402,24.54185636,82.161,82.082,121.3]
[1646986910602,23.9073,82.158,82.083,4.82495892]
[1646986911407,58.26828992,82.157,82.083,4.82495892]
[1646986912204,82.81014628,82.157,82.1,18.2577]
[1646986912404,82.81014628,82.157,82.101,24.9488]
[1646986912606,0.25,82.156,82.101,24.9488]
[1646986914407,0.25,82.156,82.102,121.3]
[1646986914609,15.06946305,82.184,82.102,121.3]
[1646986914807,24.155,82.188,82.103,5.78910383]
[1646986915011,24.155,82.188,82.104,121.3]
[1646986915207,24.155,82.188,82.12,18.2533]
[1646986915409,24.155,82.188,82.121,121.3]
[1646986915608,24.155,82.188,82.122,146.087]
[1646986915609,50.29222237,82.187,82.122,146.087]
[1646986915808,50.29222237,82.187,82.122,121.3]
[1646986916211,50.29222237,82.187,82.123,5.41897958]
[1646986916411,50.29222237,82.187,82.124,121.3]
[1646986917210,0.25,82.186,82.131,121.3]
[1646986917811,0.25,82.186,82.123,30.20597958]
[1646986918212,0.25,82.186,82.14,18.248]
[1646986919617,0.25,82.186,82.13,18.2509]
[1646986921719,0.25,82.186,82.131,121.3]
[1646986922317,0.25,82.186,82.14,18.2488]
[1646986922818,0.25,82.186,82.124,126.35532622]
[1646986923619,0.25,82.186,82.13,18.2508]
[1646986923819,0.25,82.186,82.123,24.787]
[1646986924122,30.54306291,82.185,82.123,24.787]
[1646986924320,0.25,82.184,82.123,24.787]
[1646986924520,30.08971942,82.184,82.123,24.787]
[1646986924720,26.79523985,82.183,82.123,24.787]
[1646986925021,0.25,82.182,82.123,24.787]
[1646986925622,50.29222237,82.187,82.131,121.3]
[1646986926022,50.29222237,82.187,82.124,5.48987272]
[1646986926222,50.29222237,82.187,82.124,126.78987272]
[1646986927026,0.25,82.186,82.124,126.78987272]
[1646986927227,0.25,82.186,82.14,18.2461]
[1646986927427,15.01486305,82.209,82.141,121.3]
[1646986927627,121.3,82.247,82.144,4.65931004]
[1646986927832,24.55604401,82.231,82.147,121.3]
[1646986928027,24.55604401,82.231,82.147,182.06]
[1646986928232,24.55604401,82.231,82.151,121.3]
[1646986928432,59.52496572,82.23,82.154,4.16834913]
[1646986929028,24.6124,82.229,82.154,4.16834913]
[1646986929628,24.6124,82.229,82.152,24.5656]
[1646986929830,24.6124,82.229,82.16,18.2422]
[1646986930129,33.53681221,82.229,82.16,17.6422]
[1646986930729,33.28681221,82.229,82.16,17.6422]
[1646986931130,121.3,82.228,82.152,24.5656]
[1646986931532,121.3,82.226,82.152,24.5656]
[1646986931931,29.83971942,82.225,82.152,24.5656]
[1646986932133,29.83971942,82.225,82.127,4.70916079]
[1646986932134,121.3,82.219,82.127,4.70916079]
[1646986932333,0.25,82.218,82.114,113.89218512]
[1646986932534,121.3,82.217,82.13,18.251]
[1646986932736,0.25,82.216,82.131,23.9461]
[1646986932935,3.29447957,82.216,82.131,23.9461]
[1646986933138,121.3,82.214,82.131,23.9461]
[1646986933340,0.25,82.213,82.131,23.9461]
[1646986933538,121.3,82.209,82.131,23.9461]
[1646986933739,0.25,82.208,82.131,23.9461]
[1646986933938,23.8919,82.208,82.131,23.9461]
[1646986934138,23.8919,82.208,82.14,18.2489]
[1646986935141,23.8919,82.208,82.141,22.981]
[1646986937140,121.3,82.207,82.141,22.981]
[1646986937342,0.25,82.206,82.141,22.981]
[1646986937740,59.63121205,82.205,82.141,22.981]
[1646986937941,0.25,82.204,82.141,22.981]
[1646986938142,31.80752672,82.131,82.113,79.9035]
[1646986938341,31.80752672,82.131,82.12,18.2503]
[1646986938741,31.80752672,82.131,82.12,21.29477957]
[1646986939668,31.80752672,82.131,82.12,46.80314625]
[1646986939968,31.80752672,82.131,82.121,25.8924553]
[1646986940165,31.80752672,82.131,82.122,3.03219997]
[1646986940365,31.80752672,82.131,82.122,31.58504622]
[1646986940567,31.80752672,82.131,82.123,25.50836668]
[1646986940766,31.80752672,82.131,82.123,28.55284625]
[1646986940967,31.80752672,82.131,82.124,3.04447957]
[1646986941167,70.0,82.203,82.124,3.04447957]
[1646986941367,0.25,82.202,82.13,18.2467]
[1646986941970,48.30900578,82.202,82.13,18.2467]
[1646986942367,48.30900578,82.202,82.131,28.55284625]
[1646986942568,48.30900578,82.202,82.14,18.247]
[1646986943172,48.30900578,82.202,82.14,21.29147957]
[1646986943469,48.30900578,82.202,82.141,23.4651]
[1646986944871,26.55000754,82.227,82.141,23.4651]
[1646986945074,26.55000754,82.219,82.15,18.2462]
[1646986945272,1.64749199,82.246,82.151,121.3]
[1646986945471,1.64749199,82.253,82.151,8.95193968]
[1646986945671,1.64749199,82.253,82.143,126.32970164]
[1646986945869,61.41241272,82.207,82.152,3.04447957]
[1646986946072,61.41241272,82.207,82.16,18.2399]
[1646986946271,0.25,82.206,82.152,3.04447957]
[1646986946470,70.0,82.205,82.127,11.25297615]
[1646986946973,70.0,82.205,82.128,3.04447957]
[1646986947570,0.25,82.204,82.128,3.04447957]
[1646986948071,0.25,82.204,82.14,18.2482]
[1646986948670,0.25,82.206,82.14,18.2482]
[1646986949573,121.3,82.204,82.122,23.23197458]
[1646986949773,0.25,82.203,82.122,23.23197458]
[1646986950774,0.25,82.203,82.13,18.2504]
[1646986950976,0.25,82.205,82.13,18.2504]
[1646986951771,0.25,82.205,82.122,23.23197458]
[1646986951772,121.3,82.199,82.122,23.23197458]
[1646986951974,121.3,82.197,82.116,12.6713362]
[1646986952173,121.3,82.197,82.077,4.65097037]
[1646986952374,121.3,82.193,82.079,12.6723519]
[1646986952576,53.07448711,82.198,82.079,12.6723519]
[1646986952577,121.3,82.191,82.079,12.6723519]
[1646986952975,121.3,82.169,82.08,18.2597]
[1646986953174,121.3,82.169,82.079,12.6723519]
[1646986953377,121.3,82.167,82.079,12.6723519]
[1646986953575,0.25,82.166,82.079,12.6723519]
[1646986953875,145.03,82.166,82.08,28.6403816]
[1646986954078,23.73,82.166,82.08,52.63280921]
[1646986954276,23.73,82.166,82.081,52.63280921]
[1646986954679,23.73,82.166,82.082,28.6403816]
[1646986954978,23.73,82.166,82.083,3.04447957]
[1646986955181,23.73,82.166,82.09,18.2592]
[1646986955376,145.03,82.166,82.09,18.2592]
[1646986955580,18.2621,82.16,82.083,3.04447957]
[1646986955781,145.03,82.166,82.071,25.59590203]
[1646986955782,145.7111,82.159,82.071,25.59590203]
[1646986955978,145.7111,82.159,82.059,25.59590203]
[1646986956180,175.30558711,82.159,82.059,25.59590203]
[1646986956379,29.59448711,82.158,82.06,18.2663]
[1646986956579,121.3,82.149,82.059,25.59590203]
[1646986956778,121.3,82.147,82.06,3.04447957]
[1646986956979,121.3,82.147,82.06,28.6403816]
[1646986957178,0.25,82.146,82.06,28.6403816]
[1646986957478,0.25,82.146,82.061,3.04447957]
[1646986957684,0.25,82.146,82.062,5.84321145]
[1646986957879,0.25,82.146,82.063,60.76]
[1646986958078,0.25,82.146,82.064,0.25]
[1646986958280,0.25,82.147,82.065,60.76]
[1646986958580,0.25,82.147,82.1,18.256]
[1646986963183,0.25,82.147,82.09,18.26]
[1646986964285,0.25,82.147,82.1,18.2577]
[1646986965495,24.6063,82.148,82.091,3.04447957]
[1646986965691,121.3,82.211,82.092,5.66330639]
[1646986965889,46.9845,82.204,82.101,3.04447957]
[1646986966087,46.9845,82.204,82.102,4.54610687]
[1646986966487,26.42142981,82.192,82.103,3.04447957]
[1646986966687,50.79774773,82.165,82.12,18.2524]
[1646986967089,0.25,82.158,82.12,18.2524]
[1646986968892,23.5498,82.191,82.121,121.3]
[1646986969095,23.2998,82.191,82.13,18.2481]
[1646986969693,61.21279061,82.19,82.13,18.2481]
[1646986970493,24.068,82.203,82.13,18.2481]
[1646986971296,24.068,82.203,82.131,13.68295323]
[1646986971493,65.02286784,82.202,82.14,18.2467]
[1646986971694,0.25,82.201,82.14,18.2467]
[1646986972694,0.25,82.201,82.13,18.2513]
[1646986972894,25.1996,82.201,82.123,23.7731]
[1646986973098,51.62102981,82.201,82.123,23.7731]
[1646986973496,51.62102981,82.201,82.124,13.6873996]
[1646986974595,25.1996,82.201,82.14,18.2491]
[1646986980104,25.1996,82.201,82.13,18.2512]
[1646986986231,121.3,82.2,82.13,18.2512]
[1646986986432,0.25,82.199,82.13,18.2512]
[1646986986734,25.1996,82.201,82.13,18.2512]
[1646986994844,25.1996,82.201,82.131,13.6869445]
[1646986995044,25.1996,82.201,82.14,18.249]
[1646987015795,121.3,82.2,82.124,3.04447957]
[1646987016095,0.25,82.199,82.124,3.04447957]
[1646987016695,0.25,82.199,82.125,13.69329055]
[1646987016897,0.25,82.199,82.13,18.2512]
[1646987017096,0.25,82.2,82.13,18.2512]
[1646987017696,0.25,82.2,82.131,13.69329055]
[1646987018399,121.55,82.2,82.131,13.69329055]
[1646987018597,147.97142981,82.2,82.123,23.7731]
[1646987018998,121.3,82.198,82.123,23.7731]
[1646987019196,0.25,82.197,82.123,23.7731]
[1646987019402,121.3,82.189,82.123,23.7731]
[1646987019599,0.25,82.188,82.123,23.7731]
[1646987019800,0.25,82.188,82.117,12.67710153]
[1646987020099,0.25,82.188,82.11,18.2557]
[1646987020100,121.3,82.187,82.11,18.2557]
[1646987020299,0.25,82.186,82.11,18.2557]
[1646987020506,121.3,82.185,82.11,18.2557]
[1646987020700,0.25,82.184,82.11,18.2557]
[1646987021101,121.3,82.183,82.11,18.2557]
[1646987021302,121.3,82.179,82.1,24.7842]
[1646987021506,121.3,82.175,82.1,24.7842]
[1646987021702,0.25,82.174,82.1,24.7842]
[1646987021902,0.25,82.174,82.101,13.71340692]
[1646987022503,121.3,82.169,82.101,13.71340692]
[1646987022703,121.3,82.167,82.091,13.71340692]
[1646987022904,0.25,82.166,82.091,13.71340692]
[1646987023110,0.25,82.166,82.1,18.2585]
[1646987023310,0.25,82.166,82.091,63.43031429]
[1646987023508,0.25,82.166,82.101,13.71340692]
[1646987023911,0.25,82.166,82.092,13.71340692]
[1646987027037,121.3,82.159,82.092,13.71340692]
[1646987027235,0.25,82.158,82.092,13.71340692]
[1646987027640,121.3,82.157,82.092,13.71340692]
[1646987027837,0.25,82.156,82.092,13.71340692]
[1646987028036,0.25,82.156,82.087,13.71340692]
[1646987028240,121.3,82.155,82.087,13.71340692]
[1646987028438,0.25,82.154,82.066,13.71340692]
[1646987028639,121.3,82.149,82.066,13.71340692]
[1646987028842,121.3,82.147,82.066,13.71340692]
[1646987029040,121.3,82.145,82.066,13.71340692]
[1646987029245,72.8,82.146,82.038,13.71340692]
[1646987029246,121.3,82.143,82.038,13.71340692]
[1646987029449,121.3,82.139,82.038,13.71340692]
[1646987029644,72.8,82.136,82.004,12.67557495]
[1646987029839,82.48241286,82.142,82.004,12.67557495]
[1646987029840,121.3,82.131,82.004,12.67557495]
[1646987030041,72.8,82.122,82.005,13.69718186]
[1646987030246,121.3,82.119,82.005,13.69718186]
[1646987030440,0.25,82.118,82.005,13.69718186]
[1646987030745,65.99058558,82.118,82.01,18.2779]
[1646987030940,137.48202038,82.117,82.01,18.2779]
[1646987031141,0.25,82.116,82.005,13.69718186]
[1646987031343,0.25,82.116,82.004,12.67557495]
[1646987031344,121.3,82.115,82.004,12.67557495]
[1646987031541,0.25,82.114,82.004,12.67557495]
[1646987031741,0.25,82.114,82.02,18.2761]
[1646987031942,124.34447957,82.113,82.02,18.2761]
[1646987032142,121.3,82.111,82.004,12.67557495]
[1646987032345,121.3,82.101,82.001,23.6072]
[1646987032543,121.3,82.099,82.001,23.6072]
[1646987032743,0.25,82.098,82.001,23.6072]
[1646987032943,121.3,82.097,82.001,23.6072]
[1646987033142,0.25,82.096,82.001,23.6072]
[1646987033344,55.84318665,82.094,82.001,23.6072]
[1646987033542,121.3,82.093,82.001,23.6072]
[1646987033742,121.3,82.091,82.001,23.6072]
[1646987034144,121.3,82.089,82.001,23.6072]
[1646987034344,121.3,82.087,82.001,23.6072]
[1646987034744,0.25,82.086,82.001,23.6072]
[1646987034944,121.3,82.085,82.001,23.6072]
[1646987035146,0.25,82.084,82.001,23.6072]
[1646987035446,3.29447957,82.084,82.001,23.6072]
[1646987035646,121.3,82.082,82.001,23.6072]
[1646987035848,0.25,82.081,82.001,23.6072]
[1646987036044,3.29447957,82.081,82.001,23.6072]
[1646987036446,121.3,82.079,82.001,23.6072]
[1646987036646,0.25,82.078,82.001,23.6072]
[1646987036845,121.3,82.077,82.001,23.6072]
[1646987037044,0.25,82.076,82.001,23.6072]
[1646987037450,121.3,82.075,82.001,23.6072]
[1646987037651,0.25,82.074,82.001,23.6072]
[1646987038952,0.25,82.074,82.002,121.3]
[1646987039256,0.25,82.075,82.001,23.6072]
[1646987039653,0.25,82.075,81.992,60.76]
[1646987039854,3.04447957,82.074,81.987,23.80166281]
[1646987040054,0.25,82.073,81.972,23.80166281]
[1646987040254,199.31,82.073,81.969,23.6678]
[1646987040454,33.44467437,82.072,81.969,23.6678]
[1646987040655,121.55,82.071,81.969,23.6678]
[1646987040955,154.99467437,82.071,81.98,18.2844]
[1646987041155,121.3,82.069,81.98,18.2844]
[1646987041355,47.95207715,82.068,81.98,18.2844]
[1646987041657,121.3,82.067,81.969,23.6678]
[1646987041862,0.25,82.066,81.974,23.80166281]
[1646987042460,0.25,82.066,82.0,18.2799]
[1646987042658,0.25,82.066,81.974,23.80166281]
[1646987043056,121.55,82.067,81.974,23.80166281]
[1646987043464,124.59447957,82.067,81.98,18.2846]
[1646987043659,154.19480171,82.067,81.98,18.2846]
[1646987044159,154.19480171,82.067,81.969,23.6678]
[1646987044360,29.60032214,82.067,81.97,0.25]
[1646987044560,47.70207715,82.068,81.97,0.25]
[1646987044760,47.70207715,82.068,81.98,60.9312]
[1646987044962,47.70207715,82.068,81.981,23.8966]
[1646987045561,121.3,82.067,81.981,23.6466]
[1646987045762,124.34447957,82.067,81.981,23.6466]
[1646987046166,153.94480171,82.067,81.981,23.6466]
[1646987046363,121.55,82.066,81.981,23.6466]
[1646987046563,0.25,82.066,81.981,23.6466]
[1646987046763,47.304,82.065,81.99,18.283]
[1646987046964,0.25,82.064,81.99,18.283]
[1646987047170,29.85032214,82.064,81.99,18.283]
[1646987047364,29.85032214,82.064,81.981,23.6466]
[1646987047563,121.3,82.062,81.981,23.6466]
[1646987047762,0.25,82.061,81.981,23.6466]
[1646987047963,121.3,82.06,81.981,23.6466]
[1646987048163,0.25,82.059,81.981,23.6466]
[1646987048762,121.3,82.057,81.981,23.6466]
[1646987048962,0.25,82.056,81.981,23.6466]
[1646987051167,0.25,82.056,81.99,18.2832]
[1646987051567,121.3,82.055,81.981,23.6466]
[1646987051791,145.1895,82.054,81.981,23.6466]
[1646987051967,174.78982214,82.054,81.981,23.6466]
[1646987052367,29.60032214,82.053,81.981,23.6466]
[1646987052569,0.25,82.052,81.981,23.6466]
[1646987053668,29.60032214,82.051,81.981,23.6466]
[1646987053868,0.25,82.05,81.981,23.6466]
[1646987055968,0.25,82.053,81.981,23.6466]
[1646987056368,23.6395,82.054,81.981,23.6466]
[1646987056569,23.6395,82.054,81.982,0.25]
[1646987056768,23.6395,82.054,81.982,31.37758512]
[1646987056974,23.6395,82.054,81.99,60.9253]
[1646987057273,22.708,82.065,81.99,60.9253]
[1646987057472,22.708,82.065,81.991,50.10556281]
[1646987057772,0.25,82.064,81.991,50.10556281]
[1646987058273,121.3,82.089,82.02,18.276]
[1646987058474,121.3,82.089,81.991,171.40556281]
[1646987058475,121.3,82.089,81.992,28.48800947]
[1646987058875,27.87713747,82.076,81.992,28.48800947]
[1646987059299,24.5882,82.075,81.992,28.48800947]
[1646987059499,24.5882,82.075,82.002,4.07835486]
[1646987059702,0.25,82.067,82.002,4.07835486]
[1646987060100,0.25,82.067,82.004,121.3]
[1646987060299,23.7156,82.092,82.005,0.25]
[1646987060300,0.25,82.091,82.005,0.25]
[1646987060500,0.25,82.091,82.006,121.3]
[1646987060703,0.25,82.091,82.05,18.2695]
[1646987061100,53.38746331,82.104,82.032,5.00430624]
[1646987061303,0.25,82.103,82.032,5.00430624]
[1646987062101,0.25,82.103,82.06,18.2675]
[1646987062703,3.29498398,82.168,82.033,22.6776]
[1646987062704,0.25,82.117,82.043,5.1]
[1646987062904,23.167,82.129,82.044,5.3260313]
[1646987063104,0.25,82.128,82.045,0.25]
[1646987063304,0.25,82.128,82.045,5.04]
[1646987063504,59.55105141,82.128,82.08,18.2629]
[1646987063704,59.55105141,82.128,82.045,5.04]
[1646987063705,59.55105141,82.128,82.046,22.6776]
[1646987065105,59.55105141,82.128,82.07,18.265]
[1646987065405,59.55105141,82.128,82.046,22.6776]
[1646987065608,59.30105141,82.128,82.046,22.6776]
[1646987066407,59.30105141,82.128,82.07,18.2652]
[1646987067010,0.25,82.127,82.07,18.2652]
[1646987069710,0.25,82.127,82.08,18.2633]
[1646987070311,0.25,82.128,82.061,5.67479908]
[1646987070510,0.25,82.132,82.061,5.67479908]
[1646987070710,23.0178,82.133,82.051,18.6068]
[1646987070711,23.0178,82.133,82.052,4.53573108]
[1646987071010,23.0178,82.133,82.052,65.29573108]
[1646987071212,51.47313382,82.137,82.09,18.2592]
[1646987072013,0.25,82.136,82.09,18.2592]
[1646987072813,0.25,82.148,82.09,18.2592]
[1646987073017,27.85797547,82.151,82.09,18.2592]
[1646987073213,27.85797547,82.151,82.1,18.258]
[1646987073813,50.61165953,82.15,82.1,18.258]
[1646987076018,50.61165953,82.15,82.11,18.2562]
[1646987076217,0.25,82.149,82.082,23.3215]
[1646987077119,0.25,82.149,82.1,18.2586]
[1646987078320,0.25,82.149,82.11,18.2563]
[1646987079526,0.25,82.149,82.082,23.3215]
[1646987079727,0.25,82.149,82.1,18.2585]
[1646987080121,0.25,82.149,82.082,23.3215]
[1646987080322,15.81353161,82.148,82.082,23.3215]
[1646987080522,0.25,82.147,82.082,23.3215]
[1646987080922,13.01905204,82.147,82.082,23.3215]
[1646987081125,0.25,82.147,82.082,23.3215]
[1646987082724,0.25,82.148,82.082,23.3215]
[1646987083323,0.25,82.148,82.083,4.23818991]
[1646987084123,0.25,82.148,82.1,18.2569]
[1646987085754,0.25,82.148,82.083,4.23818991]
[1646987085755,0.25,82.148,82.082,23.3215]
[1646987087158,0.25,82.148,82.1,18.2589]
[1646987093061,0.25,82.148,82.1,17.7589]
[1646987093262,0.25,82.148,82.11,18.2567]
[1646987094162,0.25,82.148,82.082,23.3215]
[1646987094363,0.25,82.148,82.1,18.2587]
[1646987096365,0.25,82.148,82.082,23.3215]
[1646987097672,0.25,82.148,82.1,18.2586]
[1646987099467,0.25,82.148,82.082,23.3215]
[1646987099672,26.91525545,82.148,82.082,23.3215]
[1646987099872,24.73108856,82.147,82.082,23.3215]
[1646987100072,0.25,82.146,82.073,17.8138]
[1646987100280,26.91525545,82.146,82.073,17.8138]
[1646987100773,26.66525545,82.145,82.073,17.8138]
[1646987100971,0.25,82.144,82.073,17.8138]
[1646987102173,0.25,82.148,82.09,18.2607]
[1646987103476,0.25,82.148,82.1,18.2586]
[1646987105978,0.25,82.148,82.081,22.7038]
[1646987107079,0.25,82.148,82.1,18.2586]
[1646987107881,23.0104,82.149,82.1,18.2586]
[1646987108686,23.0104,82.149,82.09,18.261]
[1646987109285,0.25,82.148,82.09,18.261]
[1646987110783,0.25,82.148,82.1,18.2588]
[1646987111384,0.25,82.148,82.081,22.7038]
[1646987112985,0.25,82.148,82.1,18.2586]
[1646987114487,0.25,82.148,82.09,18.2608]
[1646987118995,0.25,82.148,82.1,18.2586]
[1646987127634,0.25,82.148,82.081,22.7038]
[1646987128233,0.25,82.148,82.082,13.69811069]
[1646987129033,3.04447957,82.147,82.082,13.69811069]
[1646987129233,121.55,82.146,82.082,13.69811069]
[1646987129437,121.55,82.146,82.081,22.7038]
[1646987129636,3.04447957,82.145,82.081,22.7038]
[1646987129840,0.25,82.144,82.081,22.7038]
[1646987130235,18.2668,82.14,82.081,22.7038]
[1646987130435,0.25,82.139,82.07,18.2654]
[1646987130636,147.92617957,82.139,82.07,18.2654]
[1646987130838,3.04447957,82.138,82.07,18.2654]
[1646987131042,0.25,82.137,82.071,13.70251928]
[1646987131238,121.3,82.129,82.071,13.70251928]
[1646987131443,121.3,82.127,82.04,24.9055]
[1646987131841,0.25,82.126,82.041,13.70548277]
[1646987132039,121.3,82.124,82.041,13.70548277]
[1646987132241,0.25,82.123,82.04,18.2725]
[1646987132640,121.3,82.121,82.041,13.70548277]
[1646987132841,0.25,82.12,82.041,13.70548277]
[1646987133042,3.29447957,82.12,82.042,13.70548277]
[1646987133439,3.04447957,82.119,82.043,13.70548277]
[1646987133640,0.25,82.118,82.043,13.70548277]
[1646987134043,124.34447957,82.117,82.04,18.2725]
[1646987134339,3.29447957,82.116,82.03,18.2749]
[1646987134740,124.34447957,82.115,82.03,18.2749]
[1646987134939,0.25,82.114,82.03,18.2749]
[1646987135139,3.29447957,82.114,82.03,18.2749]
[1646987135342,121.3,82.112,82.03,18.2749]
[1646987135539,0.25,82.111,82.03,18.2749]
[1646987135741,121.3,82.11,82.03,18.2749]
[1646987135938,0.25,82.109,82.03,18.2749]
[1646987136338,3.29447957,82.109,82.03,18.2749]
[1646987136538,3.04447957,82.108,82.03,18.2749]
[1646987136743,0.25,82.107,82.03,18.2749]
[1646987136940,23.2147,82.107,82.03,18.2749]
[1646987137140,3.04447957,82.106,82.03,18.2749]
[1646987137339,0.25,82.105,82.03,18.2749]
[1646987137740,124.34447957,82.104,82.03,18.2749]
[1646987137947,0.25,82.103,82.03,18.2749]
[1646987138147,3.29447957,82.103,82.03,18.2749]
[1646987138344,3.04447957,82.102,82.03,18.2749]
[1646987138546,0.25,82.101,82.03,18.2749]
[1646987138946,52.51041901,82.099,82.03,18.2749]
[1646987139145,0.25,82.098,82.025,24.9055]
[1646987139351,3.29447957,82.098,82.025,24.9055]
[1646987139652,3.04447957,82.097,82.025,24.9055]